bitfinex/quotes_BTCUSD_20241117
["timestamp","ask_amount","ask_price","bid_price","bid_amount"]
[1731814387341,0.0440827,90083.0,90077.0,0.111015]
[1731814387566,0.111009,90083.0,90078.0,0.01508515]
[1731814387801,0.111009,90083.0,90079.0,0.01508515]
[1731814388012,0.111009,90083.0,90080.0,0.01508515]
[1731814388228,0.111009,90083.0,90081.0,0.01508515]
[1731814388453,0.111009,90083.0,90082.0,0.1241477]
[1731814389413,0.26621884,90085.0,90082.0,0.1241477]
[1731814389635,0.111007,90084.0,90083.0,0.01508515]
[1731814389866,0.000855,90093.0,90083.0,0.01508515]
[1731814389867,0.111002,90089.0,90084.0,0.111007]
[1731814390108,0.111001,90089.0,90085.0,0.01508515]
[1731814390345,0.111001,90089.0,90083.0,0.111008]
[1731814390346,0.15720736,90089.0,90086.0,0.01508515]
[1731814390565,0.15720736,90089.0,90083.0,0.111008]
[1731814390566,0.111003,90087.0,90084.0,0.02412107]
[1731814390787,0.111003,90087.0,90086.0,0.10906255]
[1731814391004,0.111003,90087.0,90086.0,0.12413768]
[1731814393308,0.111003,90087.0,90086.0,0.10906255]
[1731814393526,0.111003,90087.0,90086.0,0.14826959]
[1731814393970,0.111003,90087.0,90086.0,0.12414192]
[1731814397694,0.04620636,90089.0,90086.0,0.12414192]
[1731814397915,0.111002,90088.0,90087.0,0.12414192]
[1731814398414,0.111002,90088.0,90087.0,0.14829478]
[1731814399384,0.26714389,90091.0,90087.0,0.14829478]
[1731814399385,0.04514689,90091.0,90088.0,0.0816]
[1731814399621,0.04514689,90091.0,90089.0,0.03923223]
[1731814399879,0.000855,90093.0,90091.0,0.110998]
[1731814400102,0.000855,90093.0,90092.0,0.03923223]
[1731814400326,0.000855,90093.0,90092.0,0.25929178]
[1731814400549,0.221971,90102.0,90092.0,0.22989478]
[1731814400800,0.110988,90100.0,90094.0,0.110994]
[1731814401024,0.110988,90100.0,90095.0,0.03923223]
[1731814401251,0.221964,90105.0,90096.0,0.03923223]
[1731814401495,0.110987,90100.0,90097.0,0.03923223]
[1731814401733,0.110987,90100.0,90095.0,0.22005555]
[1731814401734,0.11099,90099.0,90095.0,0.10906255]
[1731814402008,0.11099,90099.0,90096.0,0.03924694]
[1731814402245,0.11099,90099.0,90095.0,0.10906255]
[1731814402246,0.11099,90099.0,90097.0,0.03924694]
[1731814402496,0.11099,90099.0,90098.0,0.03924694]
[1731814402726,0.1,90112.0,90098.0,0.03924694]
[1731814402951,0.1,90112.0,90102.0,0.110984]
[1731814403178,0.1,90112.0,90103.0,0.03923698]
[1731814403398,0.1,90112.0,90104.0,0.03923698]
[1731814403638,0.1,90112.0,90105.0,0.03923698]
[1731814403855,0.1,90112.0,90106.0,0.03923698]
[1731814404109,0.1,90112.0,90105.0,0.10906255]
[1731814404110,0.04494501,90112.0,90107.0,0.03923698]
[1731814404320,0.04494501,90112.0,90108.0,0.03923698]
[1731814404584,0.1,90114.0,90109.0,0.03923698]
[1731814404818,0.1,90114.0,90110.0,0.03923698]
[1731814405040,0.0133986,90118.0,90111.0,0.03923698]
[1731814405263,0.0133986,90118.0,90109.0,0.10906255]
[1731814405264,0.1243646,90118.0,90112.0,0.03923698]
[1731814405506,0.1243646,90118.0,90113.0,0.01509089]
[1731814405748,0.1243646,90118.0,90114.0,0.01507077]
[1731814405976,0.0133986,90118.0,90115.0,0.10906255]
[1731814406197,0.1243646,90118.0,90116.0,0.01507077]
[1731814406412,0.1243646,90118.0,90117.0,0.01507077]
[1731814407106,0.16852103,90118.0,90117.0,0.01507077]
[1731814408251,0.05755503,90118.0,90117.0,0.01507077]
[1731814408950,0.05755503,90118.0,90117.0,0.12413332]
[1731814409212,0.05755503,90118.0,90117.0,0.23509932]
[1731814409433,0.05755503,90118.0,90117.0,0.25921322]
[1731814409773,0.0133986,90118.0,90117.0,0.14824722]
[1731814411097,0.02066227,90118.0,90117.0,0.14824722]
[1731814411553,0.13162727,90118.0,90117.0,0.03918467]
[1731814411867,0.13162727,90118.0,90117.0,0.01507077]
[1731814412066,0.13248267,90118.0,90117.0,0.01507077]
[1731814412317,0.221936,90116.0,90105.0,0.09967444]
[1731814412537,0.221936,90116.0,90106.0,0.01504687]
[1731814412785,0.221936,90116.0,90106.0,0.01504691]
[1731814413018,0.02151767,90118.0,90106.0,0.01504691]
[1731814413019,0.221938,90115.0,90107.0,0.01504691]
[1731814413273,0.110979,90107.0,90106.0,0.10906255]
[1731814413495,0.110979,90107.0,90106.0,0.12411421]
[1731814414644,0.11668235,90107.0,90106.0,0.01505166]
[1731814415544,0.110984,90103.0,90102.0,0.16743407]
[1731814415806,0.102984,90103.0,90102.0,0.1824975]
[1731814416027,0.10867749,90103.0,90102.0,0.1824975]
[1731814416487,0.00569349,90103.0,90102.0,0.1824975]
[1731814416712,0.00569349,90103.0,90102.0,0.31758509]
[1731814416943,0.110976,90110.0,90105.0,0.110981]
[1731814417178,0.110976,90110.0,90106.0,0.01506343]
[1731814417474,0.00155514,90109.0,90107.0,0.20164143]
[1731814417705,0.00155514,90109.0,90108.0,0.25920557]
[1731814417923,0.110968,90116.0,90108.0,0.12412598]
[1731814418160,0.110968,90116.0,90109.0,0.23701643]
[1731814418392,0.014254,90118.0,90110.0,0.15013707]
[1731814418613,0.110968,90116.0,90111.0,0.15013507]
[1731814418832,0.014254,90118.0,90114.0,0.11097]
[1731814419085,0.014254,90118.0,90117.0,0.110966]
[1731814419344,0.014254,90118.0,90117.0,0.12602479]
[1731814420039,0.014254,90118.0,90117.0,0.23508734]
[1731814420278,0.014254,90118.0,90117.0,0.25918208]
[1731814420988,0.014254,90118.0,90117.0,0.14821608]
[1731814421488,0.125219,90118.0,90117.0,0.14821914]
[1731814421714,0.125219,90118.0,90117.0,0.12412252]
[1731814421937,0.125219,90118.0,90117.0,0.01505997]
[1731814422622,0.014254,90118.0,90112.0,0.16743407]
[1731814422848,0.014254,90118.0,90113.0,0.01506272]
[1731814423073,0.110968,90116.0,90113.0,0.03916408]
[1731814423341,0.110969,90115.0,90114.0,0.03916408]
[1731814423565,0.125219,90118.0,90117.0,0.10906255]
[1731814423816,0.110969,90115.0,90114.0,0.10906255]
[1731814424014,0.110969,90115.0,90114.0,0.12412595]
[1731814424240,0.110968,90116.0,90114.0,0.14822806]
[1731814424462,0.110968,90116.0,90115.0,0.03916551]
[1731814424906,0.110968,90116.0,90115.0,0.14822806]
[1731814425196,0.110968,90116.0,90115.0,0.0150634]
[1731814425661,0.110968,90116.0,90115.0,0.14822806]
[1731814425872,0.12522,90118.0,90115.0,0.14822806]
[1731814426122,0.110966,90117.0,90116.0,0.03917417]
[1731814427282,0.110966,90117.0,90116.0,0.14823672]
[1731814428379,0.014254,90118.0,90116.0,0.14823672]
[1731814428594,0.014254,90118.0,90117.0,0.03917417]
[1731814428595,0.12522,90118.0,90117.0,0.03917417]
[1731814429049,0.014254,90118.0,90117.0,0.15014017]
[1731814429536,0.014254,90118.0,90117.0,0.33450272]
[1731814429779,0.014254,90118.0,90117.0,0.29532855]
[1731814430023,0.014254,90118.0,90117.0,0.31040842]
[1731814431011,0.006254,90118.0,90117.0,0.31040842]
[1731814433086,0.006254,90118.0,90117.0,0.29532855]
[1731814433337,0.006254,90118.0,90117.0,0.31041253]
[1731814433589,0.006254,90118.0,90117.0,0.3104118]
[1731814435181,0.006254,90118.0,90117.0,0.2351118]
[1731814435631,0.117219,90118.0,90117.0,0.1241458]
[1731814435854,0.006254,90118.0,90117.0,0.1241458]
[1731814436076,0.01141249,90118.0,90117.0,0.1241458]
[1731814436773,0.12237749,90118.0,90117.0,0.12414529]
[1731814438416,0.12237749,90118.0,90117.0,0.01508274]
[1731814438659,0.12237749,90118.0,90100.0,0.16743407]
[1731814438660,0.110982,90104.0,90100.0,0.16743407]
[1731814438880,0.110982,90104.0,90103.0,0.12586417]
[1731814439101,0.11610947,90104.0,90103.0,0.12586417]
[1731814440039,0.11610947,90104.0,90103.0,0.11077295]
[1731814440263,0.11610947,90104.0,90103.0,0.12586204]
[1731814440766,0.11610947,90104.0,90103.0,0.01679949]
[1731814441446,0.16220947,90104.0,90103.0,0.01679949]
[1731814442430,0.16220947,90104.0,90103.0,0.01680141]
[1731814442786,0.16220947,90104.0,90103.0,0.0017104]
[1731814443006,0.16220947,90104.0,90103.0,0.01679787]
[1731814444822,0.16720947,90104.0,90103.0,0.01679787]
[1731814445074,0.16720947,90104.0,90103.0,0.0017104]
[1731814445293,0.36670757,90104.0,90103.0,0.0017104]
[1731814445506,0.26720947,90104.0,90103.0,0.0017104]
[1731814445727,0.25920947,90104.0,90103.0,0.0017104]
[1731814446162,0.40850698,90104.0,90103.0,0.0017104]
[1731814446393,0.25920947,90104.0,90103.0,0.0017104]
[1731814448007,0.36373647,90104.0,90103.0,0.0017104]
[1731814448227,0.26420947,90104.0,90103.0,0.0017104]
[1731814448747,0.363697,90104.0,90103.0,0.0017104]
[1731814449242,0.26420947,90104.0,90103.0,0.0017104]
[1731814449454,0.36369888,90104.0,90103.0,0.0017104]
[1731814449727,0.36367934,90104.0,90103.0,0.0017104]
[1731814449933,0.26420947,90104.0,90103.0,0.0017104]
[1731814450416,0.34170947,90104.0,90103.0,0.0017104]
[1731814450645,0.44115177,90104.0,90103.0,0.0017104]
[1731814450880,0.34170947,90104.0,90103.0,0.0017104]
[1731814451083,0.45077202,90104.0,90103.0,0.0017104]
[1731814451302,0.45019174,90104.0,90103.0,0.0017104]
[1731814451526,0.120995,90094.0,90093.0,0.0017106]
[1731814451761,0.4858076,90094.0,90093.0,0.0017106]
[1731814451984,0.49075164,90094.0,90093.0,0.0017106]
[1731814452218,0.59016983,90094.0,90093.0,0.0017106]
[1731814452673,0.49075164,90094.0,90093.0,0.0017106]
[1731814452925,0.34393904,90094.0,90093.0,0.0017106]
[1731814453133,0.26143904,90094.0,90093.0,0.0017106]
[1731814453367,0.26643904,90094.0,90093.0,0.0017106]
[1731814454034,0.26143904,90094.0,90093.0,0.0017106]
[1731814454253,0.26643904,90094.0,90093.0,0.0017106]
[1731814454488,0.26143904,90094.0,90093.0,0.0017106]
[1731814455588,0.40825164,90094.0,90093.0,0.0017106]
[1731814456463,0.41325164,90094.0,90093.0,0.0017106]
[1731814457878,0.45865021,90094.0,90093.0,0.0017106]
[1731814458660,0.45365021,90094.0,90093.0,0.0017106]
[1731814458907,0.45865021,90094.0,90093.0,0.0017106]
[1731814460707,0.45065021,90094.0,90093.0,0.0017106]
[1731814462460,0.44565021,90094.0,90093.0,0.0017106]
[1731814462663,0.45065021,90094.0,90093.0,0.0017106]
[1731814463943,0.29883761,90094.0,90093.0,0.0017106]
[1731814464145,0.25333761,90094.0,90093.0,0.0017106]
[1731814468535,0.15333761,90094.0,90093.0,0.0017106]
[1731814469193,0.15333761,90094.0,90093.0,0.11077315]
[1731814469194,0.05034261,90094.0,90093.0,0.11077315]
[1731814469891,0.05034261,90094.0,90093.0,0.22176915]
[1731814470105,0.04539857,90094.0,90093.0,0.22176915]
[1731814470324,0.11099,90098.0,90093.0,0.22176915]
[1731814470552,0.11099,90098.0,90094.0,0.10906255]
[1731814470784,0.110992,90097.0,90094.0,0.10906255]
[1731814471012,0.110993,90096.0,90094.0,0.10906255]
[1731814471287,0.110993,90095.0,90094.0,0.10906255]
[1731814471712,0.110995,90094.0,90093.0,0.0017106]
[1731814473834,0.11596013,90094.0,90093.0,0.0017106]
[1731814475582,0.10796013,90094.0,90093.0,0.0017106]
[1731814486845,0.20110048,90094.0,90093.0,0.0017106]
[1731814489056,0.00496513,90094.0,90093.0,0.11077315]
[1731814489281,0.11099,90098.0,90093.0,0.30066915]
[1731814489522,0.09941819,90101.0,90094.0,0.10906255]
[1731814489756,0.0459182,90102.0,90094.0,0.33105155]
[1731814490026,0.0008552,90103.0,90095.0,0.16743407]
[1731814490282,0.0008552,90103.0,90101.0,0.110985]
[1731814490511,0.0008552,90103.0,90102.0,0.10906255]
[1731814490725,0.1038382,90104.0,90102.0,0.10906255]
[1731814491403,0.110984,90103.0,90102.0,0.10906255]
[1731814492526,0.110983,90104.0,90102.0,0.10906255]
[1731814494266,0.1,90109.0,90102.0,0.10906255]
[1731814494541,0.110984,90103.0,90102.0,0.10906255]
[1731814497052,0.110984,90103.0,90096.0,0.0789]
[1731814497053,0.110991,90097.0,90096.0,0.0789]
[1731814497270,0.221973,90101.0,90094.0,0.0017106]
[1731814497271,0.110993,90095.0,90094.0,0.0017106]
[1731814497489,0.110993,90095.0,90094.0,0.11077315]
[1731814499990,1.105339,90095.0,90094.0,0.0017106]
[1731814500225,1.105339,90095.0,90069.0,0.16743407]
[1731814500226,0.256316,90077.0,90069.0,0.16743407]
[1731814500461,0.39817274,90077.0,90069.0,0.16743407]
[1731814500682,0.54761401,90077.0,90069.0,0.16743407]
[1731814501560,0.39817274,90077.0,90069.0,0.16743407]
[1731814502132,0.39817274,90077.0,90059.0,0.16743407]
[1731814502133,0.40817274,90077.0,90059.0,0.16743407]
[1731814502233,1.07034923,90077.0,90059.0,0.16743407]
[1731814502477,0.82128044,90077.0,90059.0,0.16743407]
[1731814502692,1.07023765,90077.0,90059.0,0.16743407]
[1731814503366,0.82128044,90077.0,90059.0,0.16743407]
[1731814505428,1.02029664,90077.0,90059.0,0.16743407]
[1731814505643,0.81328044,90077.0,90059.0,0.16743407]
[1731814506113,1.12135919,90077.0,90059.0,0.16743407]
[1731814506365,0.216037,90060.0,90059.0,0.16743407]
[1731814506603,0.35789374,90060.0,90059.0,0.16743407]
[1731814507073,0.216038,90059.0,90039.0,0.16743407]
[1731814507300,0.36527883,90059.0,90039.0,0.16743407]
[1731814507512,0.216038,90059.0,90039.0,0.16743407]
[1731814508454,0.345438,90059.0,90039.0,0.16743407]
[1731814509849,0.44483233,90059.0,90039.0,0.16743407]
[1731814510068,0.345438,90059.0,90039.0,0.16743407]
[1731814510287,0.7121844,90059.0,90039.0,0.16743407]
[1731814510538,0.345438,90059.0,90039.0,0.16743407]
[1731814511256,0.39134245,90059.0,90039.0,0.16743407]
[1731814511689,0.49060333,90059.0,90039.0,0.16743407]
[1731814512182,0.116056,90044.0,90039.0,0.16743407]
[1731814512441,0.35291274,90044.0,90039.0,0.16743407]
[1731814512659,0.35791274,90044.0,90039.0,0.16743407]
[1731814512903,0.35791274,90044.0,90034.0,0.0017108]
[1731814516081,0.40389412,90044.0,90034.0,0.0017108]
[1731814516541,0.45269412,90044.0,90034.0,0.0017108]
[1731814517000,0.111067,90035.0,90034.0,0.0017108]
[1731814517241,0.25292374,90035.0,90034.0,0.0017108]
[1731814518212,0.36292374,90035.0,90034.0,0.0017108]
[1731814520750,0.35492374,90035.0,90034.0,0.0017108]
[1731814526782,0.221071,90032.0,90030.0,0.0017108]
[1731814528539,0.270771,90032.0,90030.0,0.0017108]
[1731814530589,0.31630153,90032.0,90030.0,0.0017108]
[1731814532111,0.111082,90023.0,90022.0,0.16743407]
[1731814532528,0.111082,90023.0,90013.0,0.0786]
[1731814532529,0.111093,90014.0,90013.0,0.0786]
[1731814535664,0.103093,90014.0,90013.0,0.0786]
[1731814535892,0.14798456,90014.0,90013.0,0.0786]
[1731814536960,0.24128744,90014.0,90013.0,0.0786]
[1731814540581,0.24128744,90014.0,90013.0,0.09378726]
[1731814541497,0.24128744,90014.0,90013.0,0.0786]
[1731814542616,0.14798456,90014.0,90013.0,0.0786]
[1731814543304,0.24128744,90014.0,90013.0,0.08207075]
[1731814543572,0.24128744,90014.0,90013.0,0.09812416]
[1731814544022,0.24128744,90014.0,90013.0,0.01952416]
[1731814544229,0.24128744,90014.0,90013.0,0.01605341]
[1731814544441,0.24128744,90014.0,90013.0,0.000856]
[1731814550600,0.33279198,90014.0,90013.0,0.000856]
[1731814551016,0.23328744,90014.0,90013.0,0.000856]
[1731814551935,0.48254425,90014.0,90013.0,0.000856]
[1731814552349,0.53229652,90014.0,90013.0,0.000856]
[1731814552590,0.70091606,90014.0,90013.0,0.000856]
[1731814553215,0.83831606,90014.0,90013.0,0.000856]
[1731814553424,0.95473609,90014.0,90013.0,0.000856]
[1731814553635,0.90513748,90014.0,90013.0,0.000856]
[1731814554560,0.70591606,90014.0,90013.0,0.000856]
[1731814554769,0.90518361,90014.0,90013.0,0.000856]
[1731814555426,0.70591606,90014.0,90013.0,0.000856]
[1731814555646,0.90522445,90014.0,90013.0,0.000856]
[1731814555869,0.90193525,90014.0,90013.0,0.000856]
[1731814556525,0.90693525,90014.0,90013.0,0.000856]
[1731814556736,0.70762686,90014.0,90013.0,0.000856]
[1731814557603,0.33499824,90014.0,90013.0,0.000856]
[1731814558017,0.33999824,90014.0,90013.0,0.000856]
[1731814558242,0.33499824,90014.0,90013.0,0.000856]
[1731814558735,0.484544,90014.0,90013.0,0.000856]
[1731814559032,0.489544,90014.0,90013.0,0.000856]
[1731814559255,0.484544,90014.0,90013.0,0.000856]
[1731814559484,0.33499824,90014.0,90013.0,0.000856]
[1731814560149,0.4845718,90014.0,90013.0,0.000856]
[1731814560376,0.33499824,90014.0,90013.0,0.000856]
[1731814560604,0.70317719,90014.0,90013.0,0.000856]
[1731814560824,0.90265751,90014.0,90013.0,0.000856]
[1731814561277,0.70317719,90014.0,90013.0,0.000856]
[1731814562502,0.95258856,90014.0,90013.0,0.000856]
[1731814563217,0.70317719,90014.0,90013.0,0.000856]
[1731814564620,0.95270352,90014.0,90013.0,0.000856]
[1731814564850,0.95270109,90014.0,90013.0,0.000856]
[1731814565074,0.70317719,90014.0,90013.0,0.000856]
[1731814565773,0.94469627,90014.0,90013.0,0.000856]
[1731814565987,0.69517719,90014.0,90013.0,0.000856]
[1731814566244,0.94469627,90014.0,90013.0,0.000856]
[1731814566473,0.69517719,90014.0,90013.0,0.000856]
[1731814566945,0.70017719,90014.0,90013.0,0.000856]
[1731814567186,0.60687431,90014.0,90013.0,0.000856]
[1731814567431,0.70017719,90014.0,90013.0,0.000856]
[1731814567660,0.69517719,90014.0,90013.0,0.000856]
[1731814568344,0.60187431,90014.0,90013.0,0.000856]
[1731814568552,0.69517719,90014.0,90013.0,0.000856]
[1731814568804,0.47671134,90014.0,90013.0,0.000856]
[1731814569289,0.32699824,90014.0,90013.0,0.000856]
[1731814570209,0.47671134,90014.0,90013.0,0.000856]
[1731814570438,0.32699824,90014.0,90013.0,0.000856]
[1731814570667,0.52662399,90014.0,90013.0,0.000856]
[1731814570925,0.69547734,90014.0,90013.0,0.000856]
[1731814571579,0.32699824,90014.0,90013.0,0.000856]
[1731814572473,0.47673554,90014.0,90013.0,0.000856]
[1731814572928,0.32699824,90014.0,90013.0,0.000856]
[1731814573352,0.69554845,90014.0,90013.0,0.000856]
[1731814575573,0.89519818,90014.0,90013.0,0.000856]
[1731814575795,0.7018953,90014.0,90013.0,0.000856]
[1731814576007,0.04660236,90014.0,90013.0,0.18991855]
[1731814576222,0.0017108,90014.0,90013.0,0.18991855]
[1731814576948,0.1128038,90014.0,90013.0,0.18991855]
[1731814577597,0.0017108,90014.0,90013.0,0.18991855]
[1731814577835,0.0017108,90014.0,90013.0,0.30101355]
[1731814579610,0.0017108,90014.0,90013.0,0.18991855]
[1731814579874,0.0017108,90014.0,90013.0,0.000856]
[1731814579875,0.1128038,90014.0,90013.0,0.000856]
[1731814580559,0.1048038,90014.0,90013.0,0.000856]
[1731814580804,0.2048038,90014.0,90013.0,0.000856]
[1731814581052,0.45375353,90014.0,90013.0,0.000856]
[1731814581262,0.62251782,90014.0,90013.0,0.000856]
[1731814581721,0.62252916,90014.0,90013.0,0.000856]
[1731814581946,0.87204474,90014.0,90013.0,0.000856]
[1731814582213,0.95904474,90014.0,90013.0,0.000856]
[1731814582443,0.70952916,90014.0,90013.0,0.000856]
[1731814582658,0.79783204,90014.0,90013.0,0.000856]
[1731814582909,0.66653204,90014.0,90013.0,0.000856]
[1731814583118,0.91603918,90014.0,90013.0,0.000856]
[1731814583333,0.66653204,90014.0,90013.0,0.000856]
[1731814583783,0.86612452,90014.0,90013.0,0.000856]
[1731814585232,0.66653204,90014.0,90013.0,0.000856]
[1731814585441,0.47322916,90014.0,90013.0,0.000856]
[1731814585670,0.47317787,90014.0,90013.0,0.000856]
[1731814585886,0.1048038,90014.0,90013.0,0.000856]
[1731814586990,0.111091,90016.0,90013.0,0.18501855]
[1731814587246,0.111089,90018.0,90014.0,0.10906255]
[1731814587483,0.222175,90019.0,90014.0,0.10906255]
[1731814587683,0.111091,90017.0,90014.0,0.10906255]
[1731814587921,0.11109,90017.0,90014.0,0.10906255]
[1731814588572,0.04479764,90021.0,90014.0,0.10906255]
[1731814588797,0.111088,90019.0,90014.0,0.10906255]
[1731814589045,0.223878,90023.0,90014.0,0.10906255]
[1731814589260,0.111089,90018.0,90014.0,0.10906255]
[1731814590178,0.111089,90018.0,90013.0,0.18705]
[1731814590179,0.111093,90014.0,90013.0,0.000856]
[1731814591318,0.0017108,90018.0,90013.0,0.10991855]
[1731814591531,0.111092,90016.0,90014.0,0.10906255]
[1731814591736,0.0017108,90018.0,90014.0,0.10906255]
[1731814591737,0.11109,90017.0,90014.0,0.10906255]
[1731814592194,0.222181,90017.0,90014.0,0.10906255]
[1731814592869,0.111092,90015.0,90014.0,0.10906255]
[1731814593941,0.222181,90017.0,90013.0,0.000856]
[1731814593942,0.111093,90014.0,90013.0,0.000856]
[1731814595360,0.21082672,90014.0,90013.0,0.000856]
[1731814595565,0.20282672,90014.0,90013.0,0.000856]
[1731814597842,0.103093,90014.0,90013.0,0.000856]
[1731814598056,0.20282731,90014.0,90013.0,0.000856]
[1731814598300,0.103093,90014.0,90013.0,0.075956]
[1731814598731,0.0017108,90018.0,90013.0,0.18501855]
[1731814598732,0.2238888,90018.0,90013.0,0.18501855]
[1731814598959,0.111091,90016.0,90014.0,0.10906255]
[1731814599171,0.111092,90015.0,90014.0,0.10906255]
[1731814599377,0.222182,90017.0,90014.0,0.10906255]
[1731814599378,0.11109,90017.0,90014.0,0.10906255]
[1731814599586,0.0017108,90018.0,90014.0,0.10906255]
[1731814600502,0.0017108,90018.0,90014.0,0.22015555]
[1731814601192,0.0017108,90018.0,90014.0,0.10906255]
[1731814601640,0.1127988,90018.0,90014.0,0.10906255]
[1731814601874,0.0017108,90018.0,90017.0,0.29003407]
[1731814602084,0.0017108,90018.0,90017.0,0.37075255]
[1731814602582,0.0017108,90018.0,90017.0,0.37575255]
[1731814603910,0.0017108,90018.0,90017.0,0.37775255]
[1731814604614,0.0017108,90018.0,90017.0,0.52714298]
[1731814605085,0.0017108,90018.0,90017.0,0.37575255]
[1731814605738,0.0017108,90018.0,90017.0,0.47775255]
[1731814605945,0.001712,90023.0,90022.0,0.268683]
[1731814606152,0.001712,90023.0,90022.0,0.37996675]
[1731814606356,0.001712,90023.0,90022.0,0.37774555]
[1731814606581,0.001712,90023.0,90022.0,0.37574555]
[1731814607244,0.001712,90023.0,90022.0,0.42050993]
[1731814608411,0.001712,90023.0,90022.0,0.42250993]
[1731814610054,0.001712,90023.0,90022.0,0.52250993]
[1731814610738,0.16114607,90037.0,90036.0,0.186166]
[1731814610971,0.16114607,90037.0,90036.0,0.29522855]
[1731814611201,0.0017116,90043.0,90042.0,0.111059]
[1731814611427,0.0017116,90043.0,90042.0,0.22012155]
[1731814612083,0.0017116,90043.0,90042.0,0.22234257]
[1731814612547,0.0017116,90043.0,90042.0,0.22012155]
[1731814613615,0.0017116,90043.0,90042.0,0.10906255]
[1731814614057,0.0017116,90043.0,90042.0,0.22012155]
[1731814614698,0.0017116,90043.0,90042.0,0.10906255]
[1731814614904,0.0017116,90043.0,90042.0,0.22012155]
[1731814617003,0.0017116,90043.0,90042.0,0.10906255]
[1731814617449,0.1127696,90043.0,90042.0,0.10906255]
[1731814617883,0.0017116,90043.0,90042.0,0.10906255]
[1731814625013,0.0017116,90043.0,90042.0,0.22012155]
[1731814625636,0.111053,90047.0,90042.0,0.22012155]
[1731814625637,0.1047646,90047.0,90042.0,0.22012155]
[1731814625962,0.1047646,90047.0,90043.0,0.10906255]
[1731814626194,0.222101,90049.0,90043.0,0.10906255]
[1731814626422,0.111054,90047.0,90043.0,0.10906255]
[1731814627478,0.11105,90050.0,90044.0,0.111056]
[1731814627682,0.11105,90050.0,90045.0,0.22011655]
[1731814627891,0.111048,90051.0,90046.0,0.111054]
[1731814628102,0.26777808,90056.0,90046.0,0.10906255]
[1731814628327,0.111049,90050.0,90046.0,0.10906255]
[1731814628550,0.0472,90059.0,90044.0,0.111056]
[1731814628551,0.0472,90059.0,90047.0,0.10906255]
[1731814628784,0.0472,90068.0,90049.0,0.0492]
[1731814629010,0.111027,90068.0,90060.0,0.222073]
[1731814629257,0.111022,90072.0,90063.0,0.111032]
[1731814629470,0.111028,90067.0,90061.0,0.22009755]
[1731814629684,0.04523433,90073.0,90061.0,0.10906255]
[1731814629939,0.04523433,90073.0,90061.0,0.27649662]
[1731814630132,0.111021,90073.0,90062.0,0.0759]
[1731814630444,0.111021,90073.0,90065.0,0.14213792]
[1731814630652,0.0472,90084.0,90067.0,0.222056]
[1731814630653,0.04484437,90077.0,90067.0,0.222056]
[1731814630858,0.211012,90080.0,90069.0,0.333076]
[1731814631034,0.1,90080.0,90071.0,0.222047]
[1731814631261,0.211012,90080.0,90073.0,0.111021]
[1731814631501,0.211012,90080.0,90075.0,0.111018]
[1731814631948,0.211012,90080.0,90074.0,0.10906255]
[1731814632160,0.111013,90079.0,90074.0,0.22008155]
[1731814632379,0.1,90080.0,90074.0,0.22008155]
[1731814632380,0.111012,90080.0,90075.0,0.111018]
[1731814632592,0.111013,90080.0,90075.0,0.22008055]
[1731814632798,0.023,90081.0,90075.0,0.10906255]
[1731814633014,0.111013,90080.0,90075.0,0.10906255]
[1731814633233,0.11592751,90080.0,90075.0,0.10906255]
[1731814633457,0.11592751,90080.0,90075.0,0.22007955]
[1731814633692,0.00491551,90080.0,90075.0,0.10906255]
[1731814634381,0.00491551,90080.0,90077.0,0.111016]
[1731814634837,0.023,90079.0,90075.0,0.22007955]
[1731814635315,0.023,90077.0,90075.0,0.22007955]
[1731814635579,0.02791543,90076.0,90075.0,0.22007955]
[1731814636840,0.023,90080.0,90075.0,0.22007955]
[1731814637266,0.023,90078.0,90075.0,0.22007955]
[1731814637720,0.023,90076.0,90075.0,0.22007955]
[1731814638199,0.02791543,90076.0,90075.0,0.10906255]
[1731814638399,0.02791543,90076.0,90075.0,0.22008055]
[1731814638813,0.023,90076.0,90075.0,0.22008055]
[1731814639493,0.0017104,90077.0,90076.0,0.111017]
[1731814639698,0.0017104,90077.0,90076.0,0.22007955]
[1731814640288,0.0017104,90077.0,90076.0,0.30287955]
[1731814640711,0.0008553,90093.0,90082.0,0.14213792]
[1731814640918,0.0008553,90093.0,90092.0,0.110997]
[1731814641138,0.0008553,90093.0,90092.0,0.26035469]
[1731814641379,0.0008553,90093.0,90092.0,0.26313492]
[1731814641594,0.0008553,90093.0,90092.0,0.34593492]
[1731814642254,0.0008553,90093.0,90092.0,0.45499747]
[1731814642454,0.0008553,90093.0,90092.0,0.32797658]
[1731814643148,0.0008553,90093.0,90092.0,0.32297658]
[1731814643361,0.0008553,90093.0,90092.0,0.24017658]
[1731814644179,0.0008553,90093.0,90092.0,0.2401671]
[1731814652032,0.0008553,90093.0,90092.0,0.38452474]
[1731814652282,0.0008553,90093.0,90092.0,0.51290502]
[1731814652490,0.0008553,90093.0,90092.0,0.51490502]
[1731814653602,0.0008553,90093.0,90092.0,0.3727671]
[1731814653828,0.0008553,90093.0,90092.0,0.4727671]
[1731814654551,0.0008553,90093.0,90092.0,0.51756338]
[1731814654987,0.0008553,90104.0,90103.0,0.346584]
[1731814655218,0.0008553,90104.0,90103.0,0.61489202]
[1731814655692,0.0059533,90118.0,90117.0,0.200366]
[1731814655941,0.0059533,90118.0,90117.0,0.46667402]
[1731814656182,0.01179675,90118.0,90117.0,0.46667402]
[1731814656414,0.0059533,90118.0,90117.0,0.46667402]
[1731814656625,0.0059533,90118.0,90117.0,0.3245361]
[1731814657340,0.0059533,90118.0,90117.0,0.30942855]
[1731814657570,0.0059533,90118.0,90117.0,0.31951494]
[1731814658980,0.0059533,90118.0,90117.0,0.12914894]
[1731814659219,0.0059533,90118.0,90117.0,0.12414894]
[1731814659447,0.01189797,90118.0,90117.0,0.12414894]
[1731814659932,0.0059533,90118.0,90117.0,0.12414894]
[1731814660170,0.01189797,90118.0,90117.0,0.12414894]
[1731814660413,0.0059533,90118.0,90117.0,0.12414894]
[1731814660643,0.01189797,90118.0,90117.0,0.12414894]
[1731814660884,0.12286297,90118.0,90117.0,0.12414894]
[1731814661333,0.12286297,90118.0,90117.0,0.01508639]
[1731814661334,0.14586297,90118.0,90117.0,0.01508639]
[1731814661816,0.22396297,90118.0,90117.0,0.01508639]
[1731814662304,0.33492997,90118.0,90117.0,0.01510354]
[1731814662528,0.33492997,90118.0,90110.0,0.110975]
[1731814662529,0.110968,90116.0,90110.0,0.110975]
[1731814662765,0.110968,90116.0,90111.0,0.1241674]
[1731814663025,0.00591257,90115.0,90112.0,0.01510485]
[1731814663263,0.13397,90114.0,90113.0,0.01510485]
[1731814663719,0.1398861,90114.0,90113.0,0.01510485]